bitfinex/quotes_BTCUSD_20250623
["timestamp","ask_amount","ask_price","bid_price","bid_amount"]
[1750703470826,0.61492503,102970.0,102960.0,0.002]
[1750703471081,1.06428979,102970.0,102960.0,0.002]
[1750703471318,1.07108988,102970.0,102960.0,0.002]
[1750703471540,1.12894363,102970.0,102960.0,0.002]
[1750703471752,1.14847428,102970.0,102960.0,0.002]
[1750703471979,6.03369128,102970.0,102960.0,0.002]
[1750703472443,0.59669467,102950.0,102930.0,0.42782317]
[1750703472776,0.59669467,102950.0,102940.0,0.19428793]
[1750703472777,0.46188394,102950.0,102940.0,0.19428793]
[1750703472987,0.37875358,102950.0,102940.0,0.19428793]
[1750703473192,0.40796558,102950.0,102940.0,0.19428793]
[1750703473408,0.43121169,102950.0,102940.0,0.19428793]
[1750703473618,0.42016207,102950.0,102930.0,0.44725337]
[1750703473824,0.42698075,102950.0,102940.0,0.00013828]
[1750703474049,0.95867542,102950.0,102940.0,0.00013828]
[1750703474263,0.94051305,102950.0,102940.0,0.00013828]
[1750703474475,1.01680583,102950.0,102940.0,0.00013828]
[1750703474679,0.95967546,102950.0,102940.0,0.00013828]
[1750703474898,0.93470215,102950.0,102940.0,0.00013828]
[1750703475087,0.95867573,102950.0,102940.0,0.00013828]
[1750703475527,0.95967573,102950.0,102940.0,0.00013828]
[1750703476157,0.93470215,102950.0,102940.0,0.00013828]
[1750703476396,1.0814959,102950.0,102940.0,0.00013828]
[1750703476654,1.0485959,102950.0,102940.0,0.00013828]
[1750703476858,0.97231021,102950.0,102940.0,0.00013828]
[1750703477707,1.00511021,102950.0,102940.0,0.00013828]
[1750703477921,0.0242539,102950.0,102940.0,1.00899397]
[1750703478133,0.001,102950.0,102940.0,1.24319397]
[1750703478339,0.001,102950.0,102940.0,0.7114993]
[1750703478542,0.001,102950.0,102940.0,0.4772993]
[1750703478754,0.0001,102970.0,102960.0,0.22338657]
[1750703478977,0.0001,102970.0,102960.0,1.19257229]
[1750703479234,0.0001,102970.0,102960.0,0.40292681]
[1750703479448,0.0001,102970.0,102960.0,0.63740681]
[1750703479881,0.0001,102970.0,102960.0,0.63748681]
[1750703480797,0.0011,102970.0,102960.0,0.93462148]
[1750703481022,0.0011,102970.0,102960.0,0.63744681]
[1750703481246,0.0011,102970.0,102960.0,1.16914148]
[1750703481528,0.0001,102970.0,102960.0,1.16914148]
[1750703481756,0.0001,102970.0,102960.0,1.17314148]
[1750703482895,0.0001,102970.0,102960.0,0.64144681]
[1750703483111,0.0001,102970.0,102960.0,1.17314148]
[1750703483328,0.0001,102970.0,102960.0,2.04483615]
[1750703483551,0.0001,102970.0,102960.0,1.51314148]
[1750703484010,0.0001,102970.0,102960.0,1.27862148]
[1750703484238,0.0001,102970.0,102960.0,1.51322148]
[1750703484758,0.0001,102970.0,102960.0,1.27862148]
[1750703484980,0.0001,102970.0,102960.0,0.98152681]
[1750703485433,0.0001,102970.0,102960.0,0.74692681]
[1750703485660,0.0001,102970.0,102960.0,0.62712596]
[1750703486555,0.0001,102970.0,102960.0,0.64166681]
[1750703488584,0.0001,102970.0,102960.0,1.17336148]
[1750703488794,0.0001,102970.0,102960.0,2.09505615]
[1750703490626,0.0001,102970.0,102960.0,2.09105615]
[1750703491113,0.0001,102970.0,102960.0,2.09505615]
[1750703491345,0.0001,102970.0,102960.0,2.09605615]
[1750703491587,0.0001,102970.0,102960.0,2.09205615]
[1750703491842,0.0001,103020.0,103010.0,0.22327814]
[1750703492056,0.0001,103020.0,103010.0,0.55785753]
[1750703492331,0.0001,103020.0,103010.0,0.60549838]
[1750703492565,0.0001,103020.0,103010.0,1.13719305]
[1750703492795,0.0001,103020.0,103010.0,1.16949305]
[1750703493278,0.00056094,103020.0,103010.0,1.13719305]
[1750703494006,0.00056094,103020.0,103010.0,1.51039305]
[1750703494248,0.00056094,103020.0,103010.0,1.56039305]
[1750703494742,0.00056094,103020.0,103010.0,1.56139305]
[1750703494981,0.00056094,103020.0,103010.0,1.02969838]
[1750703495253,0.00056094,103020.0,103010.0,1.56039305]
[1750703495692,0.00056094,103020.0,103010.0,1.56639305]
[1750703497629,0.00056094,103020.0,103010.0,1.57658968]
[1750703498269,0.0002,103040.0,103030.0,1.22227032]
[1750703498517,0.00033816,103040.0,103030.0,1.73648971]
[1750703498734,0.00033816,103040.0,103030.0,2.31818438]
[1750703498949,0.00033816,103040.0,103030.0,2.32218438]
[1750703499158,0.0002,103050.0,103040.0,0.62775398]
[1750703499368,0.0002,103050.0,103040.0,1.90804271]
[1750703500058,0.0002,103050.0,103040.0,1.95804271]
[1750703500060,0.004,103070.0,103060.0,0.62771067]
[1750703500314,0.004,103070.0,103060.0,0.67801006]
[1750703500573,0.004,103070.0,103060.0,0.57261006]
[1750703500819,0.004,103070.0,103060.0,0.54836679]
[1750703501060,0.004,103070.0,103060.0,0.55806921]
[1750703501777,0.005,103070.0,103060.0,0.55806921]
[1750703502028,0.005,103070.0,103060.0,0.54836679]
[1750703502522,0.005,103070.0,103060.0,0.56777182]
[1750703502757,0.005,103070.0,103060.0,0.33317182]
[1750703502986,0.005,103070.0,103060.0,0.51445182]
[1750703503700,0.005,103070.0,103060.0,0.5047494]
[1750703503945,0.005,103070.0,103060.0,0.51401182]
[1750703504172,0.005,103070.0,103060.0,0.48490409]
[1750703504374,0.005,103070.0,103060.0,0.50430968]
[1750703504593,0.005,103070.0,103060.0,0.5140121]
[1750703504809,0.005,103070.0,103060.0,0.5139721]
[1750703505480,0.005,103070.0,103060.0,1.06020762]
[1750703506111,0.005,103070.0,103060.0,0.52851295]
[1750703506327,0.005,103070.0,103060.0,0.5139721]
[1750703506533,0.004,103070.0,103060.0,0.5139721]
[1750703506912,0.004,103070.0,103060.0,0.5149721]
[1750703507325,0.004,103070.0,103060.0,1.06120762]
[1750703507528,0.004,103070.0,103060.0,1.09330762]
[1750703508341,0.004,103070.0,103060.0,1.12560762]
[1750703508563,0.60365635,103110.0,103080.0,0.21340779]
[1750703508758,0.13374318,103110.0,103090.0,0.49386464]
[1750703508962,0.13388134,103110.0,103090.0,0.48416467]
[1750703509165,0.09512776,103110.0,103090.0,0.49386483]
[1750703509320,0.09512776,103110.0,103090.0,0.5035649]
[1750703509525,0.09512776,103110.0,103090.0,0.51326478]
[1750703509728,0.09512776,103110.0,103090.0,0.28045939]
[1750703509934,0.53169467,103100.0,103090.0,0.17992]
[1750703510204,0.02302792,103100.0,103070.0,0.17992]
[1750703510341,0.0617815,103100.0,103070.0,0.38366412]
[1750703510533,0.53169467,103090.0,103070.0,0.38366412]
[1750703510729,0.55472259,103090.0,103070.0,0.38366412]
[1750703510957,0.55472259,103090.0,103070.0,0.18008]
[1750703511538,0.39332792,103090.0,103070.0,0.38382483]
[1750703511747,0.42632792,103090.0,103070.0,0.38382483]
[1750703511955,0.42632792,103090.0,103070.0,0.38382493]
[1750703512191,0.42632792,103090.0,103070.0,0.37412288]
[1750703512410,0.95802259,103090.0,103070.0,0.37412288]
[1750703512616,0.95802259,103090.0,103070.0,0.38382502]
[1750703512820,0.95902259,103090.0,103070.0,0.21344707]
[1750703513021,0.42732792,103090.0,103070.0,0.38354502]
[1750703513219,0.95902259,103090.0,103070.0,0.39324707]
[1750703513426,0.95802259,103090.0,103070.0,0.40294902]
[1750703513648,0.08932792,103090.0,103070.0,0.40294902]
[1750703513864,0.62102259,103090.0,103070.0,0.40294902]
[1750703514049,0.62102259,103090.0,103070.0,0.42235235]
[1750703514276,0.62102259,103090.0,103070.0,0.40294902]
[1750703514486,0.62102259,103090.0,103070.0,0.37384288]
[1750703514657,0.08932792,103090.0,103080.0,0.19402405]
[1750703514878,0.08932792,103090.0,103070.0,0.39324669]
[1750703515055,0.08932792,103090.0,103070.0,0.40294826]
[1750703515305,0.08932792,103090.0,103070.0,0.51294913]
[1750703515513,0.02602792,103090.0,103080.0,0.32342638]
[1750703515695,0.02602792,103090.0,103080.0,0.33312692]
[1750703516318,0.02602792,103090.0,103080.0,0.33312701]
[1750703516539,0.02302792,103090.0,103080.0,0.33312701]
[1750703516748,0.02302792,103090.0,103080.0,0.32342647]
[1750703516749,0.02502792,103090.0,103080.0,0.32342647]
[1750703516947,0.02502792,103090.0,103080.0,0.28161939]
[1750703517204,0.05682792,103090.0,103080.0,0.47564344]
[1750703517351,0.08662792,103090.0,103080.0,0.18132]
[1750703517785,0.61832259,103090.0,103080.0,0.18132]
[1750703517988,0.1253815,103090.0,103080.0,0.18132]
[1750703518188,0.08662792,103090.0,103080.0,0.18132]
[1750703518552,0.08115829,103090.0,103080.0,0.18132]
[1750703518764,0.08115829,103090.0,103080.0,0.37534405]
[1750703518982,0.08115829,103090.0,103080.0,0.40444698]
[1750703519161,0.08115829,103090.0,103080.0,0.51444691]
[1750703519832,0.08115829,103090.0,103080.0,0.50474637]
[1750703520050,0.11973095,103090.0,103080.0,0.52218773]
[1750703520279,0.11973095,103090.0,103080.0,0.49308527]
[1750703520486,0.08215829,103090.0,103080.0,0.47368344]
[1750703520713,0.08215829,103090.0,103080.0,0.10029939]
[1750703520932,0.63210699,103090.0,103070.0,0.37556274]
[1750703521153,0.65481369,103080.0,103070.0,0.18152]
[1750703521382,0.67784161,103080.0,103060.0,0.20376479]
[1750703521623,0.09653725,103070.0,103060.0,0.10029939]
[1750703521836,0.69730699,103070.0,103050.0,0.38544773]
[1750703522042,0.05798559,103060.0,103050.0,0.3757438]
[1750703522261,0.61852259,103060.0,103040.0,0.18168]
[1750703522476,0.05798981,103050.0,103040.0,0.50519246]
[1750703522696,0.08101773,103050.0,103040.0,0.48578357]
[1750703522954,0.08101773,103050.0,103040.0,0.50519284]
[1750703523165,0.08101773,103050.0,103040.0,0.4760787]
[1750703523370,0.08101773,103050.0,103040.0,0.48578366]
[1750703523593,0.02302792,103050.0,103040.0,0.50519331]
[1750703523807,0.02302792,103050.0,103040.0,0.18168]
[1750703524032,0.10041232,103050.0,103040.0,0.39518883]
[1750703524271,0.10041232,103050.0,103040.0,0.37577937]
[1750703524489,0.10041232,103050.0,103040.0,0.39518901]
[1750703524712,0.02302792,103050.0,103040.0,0.4145979]
[1750703524922,0.02302792,103050.0,103040.0,0.50523289]
[1750703525122,0.02302792,103050.0,103040.0,0.51493729]
[1750703525333,0.02302792,103050.0,103040.0,0.28201939]
[1750703525579,0.02302792,103050.0,103040.0,0.18184]
[1750703525795,0.10041232,103050.0,103040.0,0.19154496]
[1750703526005,0.10041232,103050.0,103040.0,0.18184]
[1750703526242,0.63210699,103050.0,103040.0,0.18184]
[1750703526449,0.66310699,103050.0,103030.0,0.38578402]
[1750703526681,0.58974294,103040.0,103020.0,0.19408385]
[1750703526901,0.58974294,103040.0,103020.0,0.21363543]
[1750703526902,0.05805832,103030.0,103020.0,0.21363543]
[1750703527118,0.09696018,103030.0,103020.0,0.20392886]
[1750703527329,0.10603084,103030.0,103020.0,0.20392886]
[1750703527553,0.10829332,103030.0,103020.0,0.00013816]
[1750703527916,0.08108624,103030.0,103020.0,0.20398197]
[1750703528118,0.08108624,103030.0,103020.0,0.21368844]
[1750703528334,0.08108624,103030.0,103020.0,0.21368854]
[1750703528915,0.08118624,103030.0,103020.0,0.21368863]
[1750703529125,0.08118624,103030.0,103020.0,0.33640068]
[1750703529330,0.11984057,103030.0,103020.0,0.33640068]
[1750703529978,0.06178225,103030.0,103020.0,0.36960068]
[1750703530403,0.06178225,103030.0,103020.0,0.40270068]
[1750703531170,0.06178225,103030.0,103020.0,0.36960068]
[1750703531372,0.06178225,103030.0,103020.0,0.33640068]
[1750703531965,0.06178225,103030.0,103020.0,0.32669449]
[1750703532365,0.06178225,103030.0,103020.0,0.2263952]
[1750703532582,0.06178225,103030.0,103020.0,0.23610167]
[1750703532782,0.06178225,103030.0,103020.0,0.19727522]
[1750703532977,0.11984057,103030.0,103020.0,0.19727522]
[1750703533217,0.11984057,103030.0,103020.0,0.22639511]
[1750703533419,0.11984057,103030.0,103020.0,0.20698207]
[1750703533748,0.06178225,103030.0,103020.0,0.2263952]
[1750703533960,0.06178225,103030.0,103020.0,0.20698207]
[1750703534167,0.06178225,103030.0,103020.0,0.2263952]
[1750703534306,0.06178225,103030.0,103020.0,0.00313816]
[1750703534514,0.06178225,103030.0,103020.0,0.20698188]
[1750703534723,0.02312792,103030.0,103020.0,0.99097331]
[1750703534921,0.02312792,103030.0,103020.0,1.01522035]
[1750703535136,0.0001,103030.0,103020.0,1.01522035]
[1750703535336,0.0001,103030.0,103020.0,0.48352568]
[1750703535559,0.0001,103030.0,103020.0,0.40593487]
[1750703535787,0.0001,103030.0,103020.0,0.39139402]
[1750703536131,0.0001,103030.0,103020.0,0.50849402]
[1750703536132,0.02326343,103030.0,103020.0,0.50849402]
[1750703536325,0.02326343,103030.0,103020.0,0.54159402]
[1750703536326,0.0001,103030.0,103020.0,0.54159402]
[1750703537806,0.0001,103030.0,103020.0,0.50849402]
[1750703538934,0.0001,103030.0,103020.0,0.30728136]
[1750703539140,0.0001,103030.0,103020.0,0.49834783]
[1750703539348,0.89496347,103030.0,103020.0,0.18449816]
[1750703539966,0.92666347,103030.0,103020.0,0.18449816]
[1750703540167,0.95696347,103030.0,103020.0,0.18449816]
[1750703540373,0.95696347,103030.0,103020.0,0.00313816]
[1750703540796,1.54936286,103030.0,103020.0,0.00313816]
[1750703541029,0.0232688,103030.0,103020.0,0.72985163]
[1750703541243,0.0001,103030.0,103020.0,1.56556954]
[1750703541458,0.0001,103050.0,103040.0,0.30335398]
[1750703541664,0.0001,103050.0,103040.0,0.48595398]
[1750703541874,0.0001,103050.0,103040.0,0.53903398]
[1750703542531,0.0001,103050.0,103040.0,0.63933337]
[1750703542962,0.0001,103050.0,103040.0,1.17102804]
[1750703543606,0.0001,103050.0,103040.0,0.63933337]
[1750703543822,0.0001,103050.0,103040.0,1.17102804]
[1750703544002,0.0001,103050.0,103040.0,1.15648719]
[1750703544832,0.59419467,103090.0,103070.0,0.19404206]
[1750703545044,0.71766581,103090.0,103070.0,0.37632206]
[1750703546159,0.72380392,103090.0,103070.0,0.37632206]
[1750703547274,0.34,103080.0,103070.0,0.37632206]
[1750703547488,0.36317175,103080.0,103070.0,0.37632206]
[1750703547727,0.36317175,103080.0,103070.0,0.18228]
[1750703548154,0.36317175,103080.0,103070.0,0.37632288]
[1750703548583,0.344,103080.0,103070.0,0.37632288]
[1750703549464,0.00013811,103090.0,103080.0,0.28532651]
[1750703549718,0.00013811,103090.0,103080.0,1.46355609]
[1750703549942,0.00013811,103090.0,103080.0,0.93186142]
[1750703551281,0.00013811,103090.0,103080.0,0.92686142]
[1750703551543,0.00013811,103090.0,103080.0,0.39516675]
[1750703551779,0.00013811,103090.0,103080.0,0.6180259]
[1750703552001,0.00013811,103090.0,103080.0,0.6230259]
[1750703552431,0.00013811,103090.0,103080.0,0.6180259]
[1750703552647,0.00013811,103090.0,103080.0,0.3836259]
[1750703552881,0.00013811,103090.0,103080.0,0.3520259]
[1750703553134,0.87183278,103090.0,103080.0,0.19702405]
[1750703553643,0.87183278,103090.0,103080.0,0.37918405]
[1750703553883,0.87183278,103090.0,103080.0,0.37614405]
[1750703553884,0.34013811,103090.0,103080.0,0.37614405]
[1750703554400,0.34013811,103090.0,103080.0,0.18612]
[1750703554606,0.90353278,103090.0,103080.0,0.004]
[1750703554824,0.90353278,103090.0,103060.0,0.20374878]
[1750703555057,0.37183811,103090.0,103080.0,0.003]
[1750703555277,0.4721375,103090.0,103080.0,0.003]
[1750703555515,0.4721375,103090.0,103070.0,0.19404214]
[1750703555794,0.4721375,103090.0,103080.0,0.002]
[1750703556242,1.05737463,103090.0,103080.0,0.002]
[1750703556922,0.34,103080.0,103060.0,0.37596579]
[1750703557350,0.34,103080.0,103060.0,0.38566887]
[1750703557559,0.34,103080.0,103060.0,0.37596579]
[1750703557985,0.34,103080.0,103060.0,0.19404579]
[1750703558197,0.53169467,103070.0,103060.0,0.37660579]
[1750703558465,0.53169467,103070.0,103060.0,0.18256]
[1750703558684,0.53169467,103070.0,103060.0,0.001]
[1750703558685,0.87169467,103070.0,103060.0,0.001]
[1750703558899,0.34,103070.0,103060.0,0.001]
[1750703559111,0.87169467,103070.0,103060.0,0.001]
[1750703559759,0.00013811,103090.0,103080.0,0.30071732]
[1750703560033,0.00013811,103090.0,103080.0,1.19185223]
[1750703560715,0.00013811,103090.0,103080.0,1.53185223]
[1750703561189,0.00013811,103090.0,103080.0,2.1175469]
[1750703561426,0.00013811,103090.0,103080.0,2.1243669]
[1750703561660,0.00013811,103090.0,103080.0,2.1203669]
[1750703561892,0.00013811,103090.0,103080.0,2.1293669]
[1750703562378,0.00013811,103090.0,103080.0,1.06597756]
[1750703562611,0.00013811,103090.0,103080.0,1.67544023]
[1750703563479,0.00013811,103090.0,103080.0,1.66644023]
[1750703563950,0.00013811,103090.0,103080.0,1.68036023]
[1750703564174,0.00013811,103090.0,103080.0,1.73036023]
[1750703564816,0.00013811,103090.0,103080.0,1.68020023]
[1750703567241,0.00013811,103090.0,103080.0,1.07073756]
[1750703567450,0.00013811,103090.0,103080.0,1.68020023]
[1750703568098,0.00013811,103090.0,103080.0,1.67972023]
[1750703568531,0.00013811,103090.0,103080.0,0.9780459]
[1750703568732,0.00013811,103090.0,103080.0,0.9712259]
[1750703569338,0.00013811,103090.0,103080.0,0.98576675]
[1750703569562,0.00013811,103090.0,103080.0,1.43722023]
[1750703569812,0.00013811,103090.0,103080.0,1.72262023]
[1750703570026,0.00013811,103090.0,103080.0,1.77262023]
[1750703570228,0.00013811,103090.0,103080.0,1.76362023]
[1750703570632,0.004,103110.0,103080.0,1.77062023]
[1750703570837,0.004,103110.0,103100.0,1.41223611]
[1750703571055,0.004,103110.0,103100.0,1.59475611]
[1750703572444,0.004,103110.0,103100.0,1.60075611]
[1750703572654,0.004,103110.0,103100.0,1.61077212]
[1750703572859,0.004,103110.0,103100.0,1.5231653]
[1750703573486,0.004,103110.0,103100.0,1.5171653]
[1750703573661,0.004,103110.0,103100.0,0.72518263]
[1750703573919,0.004,103110.0,103100.0,1.59322615]
[1750703576288,0.004,103110.0,103100.0,1.64322615]
[1750703576933,0.004,103110.0,103100.0,1.69322615]
[1750703578226,0.0001,103130.0,103120.0,1.23580264]
[1750703578433,0.0005602,103130.0,103120.0,1.51826203]
[1750703578862,0.0005602,103130.0,103120.0,1.52226203]
[1750703579695,0.0005602,103130.0,103120.0,1.34010203]
[1750703579907,0.0005602,103130.0,103120.0,0.95086021]
[1750703580130,0.0005602,103130.0,103120.0,0.66733936]
[1750703580353,0.0005602,103130.0,103120.0,0.90441936]
[1750703580563,0.0005602,103130.0,103120.0,1.55872288]
[1750703580775,0.0005602,103130.0,103120.0,1.59172288]
[1750703580991,0.0005602,103130.0,103120.0,0.98226021]
[1750703581220,0.0005602,103130.0,103120.0,1.59172288]
[1750703582529,0.0005602,103130.0,103120.0,1.87472288]
[1750703582745,0.0005602,103130.0,103120.0,1.92472288]
[1750703583201,0.0005602,103130.0,103120.0,1.92072288]
[1750703583617,0.0005602,103130.0,103120.0,1.92772288]
[1750703583995,0.0005602,103130.0,103120.0,1.92072288]
[1750703584448,0.0005602,103130.0,103120.0,1.32058021]
[1750703584657,0.0005602,103130.0,103120.0,2.37863193]
[1750703585292,0.0005602,103130.0,103120.0,2.14123193]
[1750703585498,0.0005602,103130.0,103120.0,2.37855193]
[1750703585721,0.0005602,103130.0,103120.0,1.03318021]
[1750703585942,0.0005602,103130.0,103120.0,1.79952607]
[1750703586184,0.0005602,103130.0,103120.0,1.84952607]
[1750703586388,0.0005602,103130.0,103120.0,2.37855193]
[1750703587668,0.0005602,103130.0,103120.0,1.79952607]
[1750703587864,0.0005602,103130.0,103120.0,1.73502522]
[1750703588347,0.0005602,103130.0,103120.0,2.27859193]
[1750703588989,0.0005602,103130.0,103120.0,2.32859193]
[1750703589416,0.0005602,103130.0,103120.0,1.27054021]
[1750703589627,0.0005602,103130.0,103120.0,2.32859193]
[1750703590485,0.0005602,103130.0,103120.0,1.27054021]
[1750703590726,0.0005602,103130.0,103120.0,2.32859193]
[1750703593124,0.0005602,103130.0,103120.0,2.33259193]
[1750703594344,0.0005602,103130.0,103120.0,1.50166522]
[1750703594555,0.0005602,103130.0,103120.0,1.70638522]
[1750703594974,0.0005602,103130.0,103120.0,0.96485936]
[1750703595181,0.0005602,103130.0,103120.0,1.43436522]
[1750703595392,0.0005602,103130.0,103120.0,1.67204522]
[1750703595808,0.0005602,103130.0,103120.0,1.68658607]
[1750703596009,0.0005602,103130.0,103120.0,1.70214522]
[1750703596209,0.0005602,103130.0,103120.0,1.70768607]
[1750703596517,0.0005602,103130.0,103120.0,1.71368607]
[1750703596926,0.0005602,103130.0,103120.0,1.70768607]
[1750703597131,0.0005602,103130.0,103120.0,1.67758607]
[1750703598131,0.0005602,103130.0,103120.0,1.14856021]
[1750703598328,0.0005602,103130.0,103120.0,1.67758607]
[1750703598711,0.0005602,103130.0,103120.0,1.68358607]
[1750703598911,0.0005602,103130.0,103120.0,1.68334607]
[1750703600608,0.0005602,103130.0,103120.0,1.50142607]
[1750703600840,0.0005602,103130.0,103120.0,0.30024818]
[1750703600983,0.08946938,103130.0,103120.0,0.31964258]
[1750703601195,0.08946938,103130.0,103120.0,0.50140258]
[1750703601397,0.11836327,103130.0,103120.0,0.51109945]
[1750703601594,0.11836327,103130.0,103120.0,0.51109936]
[1750703601801,0.11836327,103130.0,103120.0,0.51109945]
[1750703602025,0.11836327,103130.0,103120.0,0.52079623]
[1750703602660,0.05656938,103130.0,103120.0,0.52079623]
[1750703602822,0.02376938,103130.0,103120.0,0.33903623]
[1750703602986,0.02376938,103130.0,103120.0,0.57627623]
[1750703604016,0.02376938,103130.0,103120.0,1.10530209]
[1750703604385,0.0005602,103130.0,103120.0,1.45984294]
[1750703606813,0.0005602,103130.0,103120.0,0.93081708]
[1750703609210,0.0005602,103130.0,103120.0,1.45984294]
[1750703609421,0.0005602,103130.0,103120.0,0.96081708]
[1750703609624,0.0005602,103130.0,103120.0,1.48984294]
[1750703611033,0.0005602,103130.0,103120.0,0.96081708]
[1750703611225,0.0005602,103130.0,103120.0,1.48984294]
[1750703611988,0.0005602,103130.0,103120.0,2.0510688]
[1750703612401,0.0005602,103130.0,103120.0,1.57204294]
[1750703612803,0.0005602,103130.0,103120.0,0.33333945]
[1750703613077,0.0307602,103130.0,103120.0,0.32933936]
[1750703613536,0.0005602,103130.0,103120.0,0.87290607]
[1750703614183,0.0005602,103130.0,103120.0,0.34388058]
[1750703614396,0.0005602,103130.0,103120.0,0.34388077]
[1750703614609,0.0005602,103130.0,103120.0,0.35357773]
[1750703614825,0.0005602,103130.0,103120.0,0.34388077]
[1750703615032,0.0005602,103130.0,103120.0,0.35357764]
[1750703615236,0.0005602,103130.0,103120.0,0.53533764]
[1750703615458,0.0005602,103130.0,103120.0,0.53533773]
[1750703615675,0.0005602,103130.0,103120.0,1.07406037]
[1750703615891,0.0005602,103130.0,103120.0,0.54503451]
[1750703616105,0.0005602,103130.0,103120.0,1.12958037]
[1750703616316,0.0005602,103130.0,103120.0,0.54503451]
[1750703618644,0.0005602,103130.0,103120.0,1.07406037]
[1750703619789,0.0005602,103130.0,103120.0,0.54503451]
[1750703620002,0.0005602,103130.0,103120.0,1.13736037]
[1750703621108,0.0005602,103130.0,103120.0,1.18736037]
[1750703621742,0.0005602,103130.0,103120.0,1.13736037]
[1750703621964,0.0005602,103130.0,103120.0,1.07406037]
[1750703622633,0.0005602,103130.0,103120.0,0.54503451]
[1750703623304,0.0005602,103130.0,103120.0,1.07406037]
[1750703623514,0.0005602,103130.0,103120.0,1.10426037]
[1750703623945,0.0005602,103130.0,103120.0,1.13656037]
[1750703624388,0.0005602,103130.0,103120.0,0.60753451]
[1750703624591,0.0005602,103130.0,103120.0,1.10426037]
[1750703624804,0.0005602,103130.0,103120.0,0.57523451]
[1750703625018,0.0005602,103130.0,103120.0,1.10426037]
[1750703625230,0.0005602,103130.0,103120.0,0.57523451]
[1750703625441,0.0005602,103130.0,103120.0,1.13726037]
[1750703625865,0.0005602,103130.0,103120.0,0.60823451]
[1750703626075,0.0005602,103130.0,103120.0,1.13726037]
[1750703626524,0.0005602,103130.0,103120.0,0.60823451]
[1750703626755,0.0005602,103130.0,103120.0,1.13726037]
[1750703627384,0.0005602,103130.0,103120.0,0.57523451]
[1750703627623,0.0632,103160.0,103150.0,0.20358699]
[1750703627840,0.0632,103160.0,103140.0,0.10029939]
[1750703627841,0.0632,103150.0,103140.0,0.10029939]
[1750703628084,0.52902586,103150.0,103140.0,0.18104]
[1750703628294,0.52916391,103160.0,103140.0,0.18104]
[1750703628749,0.00013805,103160.0,103130.0,0.39433023]
[1750703628977,0.52916391,103160.0,103130.0,0.52371723]
[1750703629205,0.52916391,103160.0,103130.0,0.50432509]
[1750703629464,0.52916391,103160.0,103130.0,0.52371648]
[1750703629700,0.52916391,103160.0,103140.0,0.21330167]
[1750703629930,0.52916391,103160.0,103140.0,0.33299132]
[1750703630181,0.00013805,103160.0,103140.0,0.32329538]
[1750703630412,0.00013805,103160.0,103150.0,0.21428133]
[1750703630640,0.00013805,103160.0,103140.0,0.33299009]
[1750703630905,0.00013805,103160.0,103150.0,0.00969461]
[1750703631126,0.00013805,103160.0,103150.0,0.01938913]
[1750703631127,0.39633805,103160.0,103150.0,0.01938913]
[1750703631335,0.39633805,103160.0,103140.0,0.31460068]
[1750703631540,0.39633805,103160.0,103140.0,0.33399057]
[1750703631758,0.39633805,103160.0,103140.0,0.34268537]
[1750703632190,0.58536391,103160.0,103140.0,0.3039056]
[1750703632499,0.58456391,103160.0,103140.0,0.3039056]
[1750703632754,0.0554,103150.0,103140.0,0.29421023]
[1750703632958,0.0554,103150.0,103140.0,0.30390569]
[1750703633366,0.0554,103150.0,103140.0,0.10029939]
[1750703633571,0.0554,103150.0,103140.0,0.10999494]
[1750703633778,0.0554,103150.0,103140.0,0.31360149]
[1750703634006,0.0554,103150.0,103140.0,0.31360158]
[1750703634219,0.0554,103150.0,103140.0,0.32329695]
[1750703634451,0.0554,103150.0,103140.0,0.30490612]
[1750703634659,0.0554,103150.0,103140.0,0.32429695]
[1750703634869,0.0554,103150.0,103140.0,0.33399213]
[1750703635115,0.0554,103150.0,103140.0,0.33399222]
[1750703635567,0.0312,103150.0,103140.0,0.34368721]
[1750703635779,0.05703805,103160.0,103140.0,0.34368646]
[1750703635994,0.05703805,103160.0,103140.0,0.34368571]
[1750703636203,1.02062391,103170.0,103140.0,0.333991]
[1750703636414,1.04977391,103170.0,103140.0,0.34382395]
[1750703636627,1.04977391,103170.0,103140.0,0.33312915]
[1750703636965,1.04977391,103170.0,103140.0,0.31373926]
[1750703637139,1.04977391,103170.0,103140.0,0.32343425]
[1750703637603,1.07303167,103170.0,103140.0,0.32343425]
[1750703637811,1.07467167,103170.0,103140.0,0.32343425]
[1750703638022,1.07467167,103170.0,103140.0,0.33312915]
[1750703638232,1.07467167,103170.0,103140.0,0.33312905]
[1750703638446,0.05440776,103170.0,103150.0,0.20358626]
[1750703638652,0.34,103160.0,103140.0,0.39133025]
[1750703638863,0.34,103160.0,103140.0,0.42041513]
[1750703639089,0.34,103160.0,103150.0,0.19389238]
[1750703639304,0.34,103160.0,103140.0,0.46312431]
[1750703639519,0.34,103160.0,103150.0,0.20358699]
[1750703639730,0.34,103160.0,103150.0,0.21328151]
[1750703639935,0.34,103160.0,103150.0,0.22297594]
[1750703640148,0.34,103160.0,103150.0,0.21328151]
[1750703640384,0.34,103160.0,103140.0,0.3816348]
[1750703640604,0.52902586,103160.0,103140.0,0.3816348]
[1750703641021,0.36915,103170.0,103140.0,0.40102506]
[1750703641245,0.52902586,103160.0,103140.0,0.40102515]
[1750703641717,0.52902586,103160.0,103140.0,0.39133007]
[1750703641926,0.52902586,103160.0,103140.0,0.31373963]
[1750703642148,0.52902586,103160.0,103140.0,0.323435]
[1750703642362,0.53532586,103160.0,103140.0,0.00013805]
[1750703642805,0.73834816,103160.0,103140.0,0.19404908]
[1750703643055,0.73834816,103160.0,103140.0,0.21344009]
[1750703643269,0.73834816,103160.0,103140.0,0.22313546]
[1750703643471,0.34,103160.0,103140.0,0.40102529]
[1750703643685,0.34,103160.0,103140.0,0.32343448]
[1750703644102,0.34,103160.0,103140.0,0.33312956]
[1750703644741,0.34,103160.0,103150.0,0.20358699]
[1750703644949,0.34,103160.0,103140.0,0.3428238]
[1750703645149,0.34,103160.0,103150.0,0.19389238]
[1750703645360,0.34,103160.0,103150.0,0.20358681]
[1750703645607,0.34,103160.0,103150.0,0.24638105]
[1750703645832,0.34,103160.0,103150.0,0.19389238]
[1750703646053,0.34,103160.0,103140.0,0.44463465]
[1750703646263,0.34,103160.0,103140.0,0.46402491]
[1750703646472,0.89229296,103160.0,103140.0,0.65324018]
[1750703646677,0.89229296,103160.0,103140.0,0.55625911]
[1750703646885,0.89229296,103160.0,103140.0,0.5337541]
[1750703647095,0.89239296,103160.0,103140.0,0.53375419]
[1750703647304,0.89239296,103160.0,103140.0,0.53375429]
[1750703647512,0.89239296,103160.0,103140.0,0.50295419]
[1750703648034,0.89239296,103160.0,103140.0,0.49325911]
[1750703648259,0.52912586,103160.0,103140.0,0.32343429]
[1750703648473,0.52912586,103160.0,103140.0,0.33312928]
[1750703648676,0.52912586,103160.0,103140.0,0.34282408]